[Event "*** Titled Tuesday Blitz"]
[Site "Chess.com"]
[Date "2020.12.01"]
[Round "9"]
[White "DinaBelenkaya"]
[Black "kagg1125"]
[Result "1-0"]
[WhiteElo "2406"]
[BlackElo "2530"]
[TimeControl "180+1"]
[EndTime "11:40:09 PST"]
[Termination "DinaBelenkaya won by resignation"]

1. e4 {[%clk 0:02:58.9]} 1... e5 {[%clk 0:02:53.3]} 2. Nf3 {[%clk 0:02:57.4]}
2... Nc6 {[%clk 0:02:52.3]} 3. Nc3 {[%clk 0:02:55.2]} 3... Nf6 {[%clk
0:02:51.8]} 4. d4 {[%clk 0:02:52.9]} 4... exd4 {[%clk 0:02:49.9]} 5. Nxd4 {[%clk
0:02:53.8]} 5... Bb4 {[%clk 0:02:48.3]} 6. Nxc6 {[%clk 0:02:48.5]} 6... bxc6
{[%clk 0:02:49.2]} 7. Bd3 {[%clk 0:02:47]} 7... d5 {[%clk 0:02:47.2]} 8. exd5
{[%clk 0:02:43.7]} 8... O-O {[%clk 0:02:46.2]} 9. O-O {[%clk 0:02:43.5]} 9...
Bg4 {[%clk 0:02:43.4]} 10. Be2 {[%clk 0:02:41.4]} 10... Bxe2 {[%clk 0:02:39.7]}
11. Nxe2 {[%clk 0:02:37.3]} 11... cxd5 {[%clk 0:02:39.6]} 12. Bg5 {[%clk
0:02:36.8]} 12... c6 {[%clk 0:02:37.2]} 13. c3 {[%clk 0:02:36.9]} 13... Bd6
{[%clk 0:02:34.8]} 14. Ng3 {[%clk 0:02:36.1]} 14... h6 {[%clk 0:02:33]} 15. Be3
{[%clk 0:02:34.2]} 15... Bxg3 {[%clk 0:02:29]} 16. hxg3 {[%clk 0:02:32]} 16...
a5 {[%clk 0:02:27.8]} 17. Bc5 {[%clk 0:02:31.4]} 17... Re8 {[%clk 0:02:26.7]}
18. Re1 {[%clk 0:02:30.8]} 18... Ne4 {[%clk 0:02:25.1]} 19. Qd4 {[%clk
0:02:30.4]} 19... Qd7 {[%clk 0:02:16.4]} 20. a4 {[%clk 0:02:27.4]} 20... Rab8
{[%clk 0:02:12]} 21. b4 {[%clk 0:02:27]} 21... axb4 {[%clk 0:02:11.7]} 22. cxb4
{[%clk 0:02:27.9]} 22... Qb7 {[%clk 0:02:07.1]} 23. a5 {[%clk 0:02:10.1]} 23...
Nxc5 {[%clk 0:02:04]} 24. Rxe8+ {[%clk 0:02:11]} 24... Rxe8 {[%clk 0:02:03.4]}
25. Qxc5 {[%clk 0:02:11.9]} 25... Rb8 {[%clk 0:02:03.4]} 26. a6 {[%clk
0:02:09.6]} 26... Qa8 {[%clk 0:02:03.3]} 27. a7 {[%clk 0:02:06.6]} 27... Rc8
{[%clk 0:02:03.4]} 28. b5 {[%clk 0:02:01.5]} 1-0

[Event "*** Titled Tuesday Blitz"]
[Site "Chess.com"]
[Date "2020.12.01"]
[Round "9"]
[White "Stosk"]
[Black "Lion-Al-Messi"]
[Result "1-0"]
[WhiteElo "2425"]
[BlackElo "2559"]
[TimeControl "180+1"]
[EndTime "11:40:36 PST"]
[Termination "Stosk won by resignation"]

1. d4 {[%clk 0:03:00.9]} 1... b6 {[%clk 0:03:00.9]} 2. e4 {[%clk 0:02:54.9]}
2... Bb7 {[%clk 0:03:01.8]} 3. Nc3 {[%clk 0:02:54]} 3... e6 {[%clk 0:03:01.9]}
4. Nf3 {[%clk 0:02:47.5]} 4... Bb4 {[%clk 0:03:01.6]} 5. Bd3 {[%clk 0:02:46.7]}
5... Nf6 {[%clk 0:02:59.7]} 6. Qe2 {[%clk 0:02:43.1]} 6... d5 {[%clk 0:02:58.8]}
7. e5 {[%clk 0:02:35.8]} 7... Ne4 {[%clk 0:02:58.8]} 8. Bd2 {[%clk 0:02:30.3]}
8... Nxd2 {[%clk 0:02:59]} 9. Qxd2 {[%clk 0:02:30.1]} 9... Be7 {[%clk
0:02:59.9]} 10. O-O {[%clk 0:02:24.9]} 10... c5 {[%clk 0:03:00.2]} 11. Qf4
{[%clk 0:02:18.1]} 11... Nc6 {[%clk 0:02:56.8]} 12. Nb5 {[%clk 0:02:07.2]} 12...
a6 {[%clk 0:02:52.2]} 13. Nd6+ {[%clk 0:02:01.2]} 13... Bxd6 {[%clk 0:02:51.9]}
14. exd6 {[%clk 0:02:02.1]} 14... cxd4 {[%clk 0:02:47.1]} 15. Nxd4 {[%clk
0:02:00.3]} 15... Nxd4 {[%clk 0:02:47]} 16. Qxd4 {[%clk 0:02:00.1]} 16... Qxd6
{[%clk 0:02:46.8]} 17. Qxg7 {[%clk 0:01:56.4]} 17... O-O-O {[%clk 0:02:46.9]}
18. Qc3+ {[%clk 0:01:54.7]} 18... Kb8 {[%clk 0:02:46.5]} 19. f4 {[%clk 0:01:52]}
19... Rhg8 {[%clk 0:02:44.3]} 20. Qe5 {[%clk 0:01:50.8]} 20... Qxe5 {[%clk
0:02:44.2]} 21. fxe5 {[%clk 0:01:51.7]} 21... d4 {[%clk 0:02:43.4]} 22. g3
{[%clk 0:01:51.2]} 22... Rd5 {[%clk 0:02:42.6]} 23. Rxf7 {[%clk 0:01:42.2]}
23... Rxe5 {[%clk 0:02:41.5]} 24. Rxh7 {[%clk 0:01:36.7]} 24... Re3 {[%clk
0:02:36.1]} 25. Rf1 {[%clk 0:01:34.1]} 25... e5 {[%clk 0:02:31.9]} 26. Rff7
{[%clk 0:01:29.6]} 26... Bd5 {[%clk 0:02:31.8]} 27. Rd7 {[%clk 0:01:24.1]} 27...
Ba8 {[%clk 0:02:24]} 28. Rd6 {[%clk 0:01:14.6]} 28... Rf8 {[%clk 0:02:19]} 29.
Rxb6+ {[%clk 0:01:12.9]} 29... Kc8 {[%clk 0:02:13.6]} 30. Bxa6+ {[%clk
0:01:12.5]} 30... Bb7 {[%clk 0:02:12.8]} 31. Bxb7+ {[%clk 0:01:11.4]} 31... Kd8
{[%clk 0:02:11.2]} 32. Rd6+ {[%clk 0:01:09.4]} 1-0

[Event "*** Titled Tuesday Blitz"]
[Site "Chess.com"]
[Date "2020.12.01"]
[Round "9"]
[White "PotapovaM"]
[Black "anpospan"]
[Result "1/2-1/2"]
[WhiteElo "2576"]
[BlackElo "2415"]
[TimeControl "180+1"]
[EndTime "11:40:50 PST"]
[Termination "Game drawn by repetition"]

1. e4 {[%clk 0:03:00.9]} 1... b6 {[%clk 0:02:59.1]} 2. d4 {[%clk 0:03:00.7]}
2... Bb7 {[%clk 0:02:59.2]} 3. Bd3 {[%clk 0:03:01.2]} 3... d6 {[%clk 0:02:59.3]}
4. Nf3 {[%clk 0:03:00.9]} 4... Nd7 {[%clk 0:02:59.5]} 5. O-O {[%clk 0:03:01.2]}
5... e5 {[%clk 0:02:59.3]} 6. c3 {[%clk 0:02:58.5]} 6... Ngf6 {[%clk 0:02:58.7]}
7. Qe2 {[%clk 0:02:58.6]} 7... Be7 {[%clk 0:02:58.5]} 8. Re1 {[%clk 0:02:58.8]}
8... O-O {[%clk 0:02:58.3]} 9. Nbd2 {[%clk 0:02:59.1]} 9... Re8 {[%clk
0:02:58.3]} 10. Nf1 {[%clk 0:02:59.3]} 10... Bf8 {[%clk 0:02:58]} 11. Ng3 {[%clk
0:02:58.4]} 11... g6 {[%clk 0:02:57.9]} 12. d5 {[%clk 0:02:57.2]} 12... Nc5
{[%clk 0:02:52.7]} 13. Bb5 {[%clk 0:02:48.7]} 13... Ncd7 {[%clk 0:02:39.2]} 14.
b4 {[%clk 0:02:43]} 14... a6 {[%clk 0:02:38.7]} 15. Bc6 {[%clk 0:02:43.1]} 15...
Bxc6 {[%clk 0:02:28.1]} 16. dxc6 {[%clk 0:02:44]} 16... Nb8 {[%clk 0:02:28.1]}
17. Bg5 {[%clk 0:02:14.9]} 17... Nxc6 {[%clk 0:02:14.4]} 18. h4 {[%clk
0:02:13.7]} 18... h6 {[%clk 0:02:10.4]} 19. Bd2 {[%clk 0:02:06.3]} 19... Ne7
{[%clk 0:02:09.2]} 20. Rad1 {[%clk 0:02:04.5]} 20... Qd7 {[%clk 0:02:07.6]} 21.
h5 {[%clk 0:01:49.6]} 21... g5 {[%clk 0:02:05.8]} 22. Be3 {[%clk 0:01:40.5]}
22... Qg4 {[%clk 0:02:02.6]} 23. Qc2 {[%clk 0:01:23]} 23... Nxh5 {[%clk
0:01:34.4]} 24. Nh2 {[%clk 0:01:22.8]} 24... Qh4 {[%clk 0:01:34.6]} 25. Nf3
{[%clk 0:01:23]} 25... Qg4 {[%clk 0:01:34.1]} 26. Nh2 {[%clk 0:01:22.2]} 26...
Qh4 {[%clk 0:01:33.6]} 27. Nf3 {[%clk 0:01:21.8]} 27... Qg4 {[%clk 0:01:33.9]}
1/2-1/2

[Event "*** Titled Tuesday Blitz"]
[Site "Chess.com"]
[Date "2020.12.01"]
[Round "9"]
[White "Pelopidass"]
[Black "Gerasimenyuk_Miha"]
[Result "1-0"]
[WhiteElo "2566"]
[BlackElo "2430"]
[TimeControl "180+1"]
[EndTime "11:41:04 PST"]
[Termination "Pelopidass won by resignation"]

1. e4 {[%clk 0:03:00.9]} 1... d5 {[%clk 0:02:59.3]} 2. exd5 {[%clk 0:02:57.5]}
2... Qxd5 {[%clk 0:02:57.4]} 3. Nc3 {[%clk 0:02:57.8]} 3... Qa5 {[%clk
0:02:57.5]} 4. d4 {[%clk 0:02:57.8]} 4... Nf6 {[%clk 0:02:57.4]} 5. Bc4 {[%clk
0:02:56]} 5... Nc6 {[%clk 0:02:56]} 6. Nf3 {[%clk 0:02:56.1]} 6... Bg4 {[%clk
0:02:55.7]} 7. h3 {[%clk 0:02:34]} 7... Qh5 {[%clk 0:02:49.3]} 8. d5 {[%clk
0:02:04.7]} 8... O-O-O {[%clk 0:02:46.4]} 9. Be3 {[%clk 0:01:43]} 9... Ne5
{[%clk 0:02:40.4]} 10. Be2 {[%clk 0:01:42.5]} 10... Nxf3+ {[%clk 0:02:34.2]} 11.
gxf3 {[%clk 0:01:40.8]} 11... Bf5 {[%clk 0:02:32.7]} 12. Qd4 {[%clk 0:01:34.7]}
12... b6 {[%clk 0:02:19]} 13. O-O-O {[%clk 0:01:34.1]} 13... e6 {[%clk
0:02:13.5]} 14. Qa4 {[%clk 0:01:27.6]} 14... Nxd5 {[%clk 0:01:57.8]} 15. Qxa7
{[%clk 0:01:13.8]} 15... Bd6 {[%clk 0:01:37.3]} 16. Nxd5 {[%clk 0:00:55.4]}
16... exd5 {[%clk 0:01:32]} 17. Bb5 {[%clk 0:00:54.9]} 17... c6 {[%clk
0:01:27.5]} 18. Bxc6 {[%clk 0:00:52.1]} 1-0

[Event "*** Titled Tuesday Blitz"]
[Site "Chess.com"]
[Date "2020.12.01"]
[Round "9"]
[White "scoopbh"]
[Black "VladimirBugayev"]
[Result "0-1"]
[WhiteElo "2085"]
[BlackElo "2286"]
[TimeControl "180+1"]
[EndTime "11:41:31 PST"]
[Termination "VladimirBugayev won by resignation"]

1. e4 {[%clk 0:03:00.9]} 1... c6 {[%clk 0:02:59]} 2. d4 {[%clk 0:03:00.4]} 2...
d5 {[%clk 0:02:59.5]} 3. f3 {[%clk 0:02:56.5]} 3... dxe4 {[%clk 0:02:58.6]} 4.
fxe4 {[%clk 0:02:56.5]} 4... e5 {[%clk 0:02:59.5]} 5. Nf3 {[%clk 0:02:52.4]}
5... Bg4 {[%clk 0:02:59.8]} 6. Bc4 {[%clk 0:02:49.2]} 6... Nd7 {[%clk
0:03:00.3]} 7. O-O {[%clk 0:02:42.2]} 7... Ngf6 {[%clk 0:03:00]} 8. Bg5 {[%clk
0:02:36.4]} 8... Bd6 {[%clk 0:02:51.4]} 9. c3 {[%clk 0:02:32.7]} 9... O-O {[%clk
0:02:45.1]} 10. Nbd2 {[%clk 0:02:32.4]} 10... Qc7 {[%clk 0:02:38.1]} 11. Qe1
{[%clk 0:02:30.1]} 11... Bh5 {[%clk 0:02:29]} 12. Qh4 {[%clk 0:02:25.4]} 12...
Bg6 {[%clk 0:02:26.6]} 13. Rae1 {[%clk 0:02:16.5]} 13... Rfe8 {[%clk 0:02:22.8]}
14. Qg3 {[%clk 0:01:42.5]} 14... exd4 {[%clk 0:02:09.3]} 15. Qh3 {[%clk
0:01:23.8]} 15... dxc3 {[%clk 0:02:03.1]} 16. bxc3 {[%clk 0:01:24.7]} 16... Ne5
{[%clk 0:01:27.8]} 17. Bxf6 {[%clk 0:01:17.4]} 17... gxf6 {[%clk 0:01:05.2]} 18.
Bb3 {[%clk 0:01:13.4]} 18... Nd3 {[%clk 0:00:59.7]} 19. Re2 {[%clk 0:01:03]}
19... Nf4 {[%clk 0:00:59.2]} 20. Qg4 {[%clk 0:00:54.4]} 0-1

[Event "*** Titled Tuesday Blitz"]
[Site "Chess.com"]
[Date "2020.12.01"]
[Round "9"]
[White "Joel1285"]
[Black "annacramling"]
[Result "0-1"]
[WhiteElo "1830"]
[BlackElo "2110"]
[TimeControl "180+1"]
[EndTime "11:41:40 PST"]
[Termination "annacramling won on time"]

1. d4 {[%clk 0:01:39.8]} 1... Nf6 {[%clk 0:02:54.1]} 2. c4 {[%clk 0:01:40.2]}
2... e6 {[%clk 0:02:52.8]} 3. Nf3 {[%clk 0:01:40.3]} 3... d5 {[%clk 0:02:52.4]}
4. Nc3 {[%clk 0:01:38.2]} 4... Be7 {[%clk 0:02:50.6]} 5. cxd5 {[%clk 0:01:38.7]}
5... exd5 {[%clk 0:02:48.9]} 6. Bg5 {[%clk 0:01:39.2]} 6... O-O {[%clk
0:02:47.9]} 7. Qc2 {[%clk 0:01:39.7]} 7... c6 {[%clk 0:02:46.6]} 8. e3 {[%clk
0:01:40.1]} 8... h6 {[%clk 0:02:45.9]} 9. Bh4 {[%clk 0:01:39.5]} 9... Be6 {[%clk
0:02:42.9]} 10. Bd3 {[%clk 0:01:39.9]} 10... Nbd7 {[%clk 0:02:42.7]} 11. O-O
{[%clk 0:01:40.5]} 11... Rc8 {[%clk 0:02:42.3]} 12. Rab1 {[%clk 0:01:39.9]}
12... c5 {[%clk 0:02:42.5]} 13. dxc5 {[%clk 0:01:34.8]} 13... Nxc5 {[%clk
0:02:43.4]} 14. Nd4 {[%clk 0:01:34.7]} 14... Nce4 {[%clk 0:02:26]} 15. Bxe4
{[%clk 0:01:13.5]} 15... Nxe4 {[%clk 0:02:20]} 16. Bxe7 {[%clk 0:01:14.4]} 16...
Qxe7 {[%clk 0:02:14.3]} 17. Rfc1 {[%clk 0:00:13.1]} 17... Qg5 {[%clk 0:02:06.2]}
18. Nxe4 {[%clk 0:00:08.8]} 18... dxe4 {[%clk 0:02:00.5]} 19. Qxe4 {[%clk
0:00:09.7]} 19... Bd5 {[%clk 0:01:52.5]} 20. f4 {[%clk 0:00:03.8]} 20... Bxe4
{[%clk 0:01:48.2]} 21. fxg5 {[%clk 0:00:03.6]} 21... Bxb1 {[%clk 0:01:48.1]} 22.
Rxb1 {[%clk 0:00:03.2]} 22... hxg5 {[%clk 0:01:48.2]} 0-1

[Event "*** Titled Tuesday Blitz"]
[Site "Chess.com"]
[Date "2020.12.01"]
[Round "9"]
[White "sergiochess83"]
[Black "Konavets"]
[Result "1-0"]
[WhiteElo "2808"]
[BlackElo "2985"]
[TimeControl "180+1"]
[EndTime "11:41:57 PST"]
[Termination "sergiochess83 won by checkmate"]

1. e4 {[%clk 0:03:00.9]} 1... c6 {[%clk 0:02:48]} 2. d4 {[%clk 0:02:57.4]} 2...
d5 {[%clk 0:02:48.9]} 3. e5 {[%clk 0:02:54.5]} 3... Bf5 {[%clk 0:02:48.1]} 4.
Nf3 {[%clk 0:02:55.1]} 4... e6 {[%clk 0:02:48.1]} 5. Be2 {[%clk 0:02:55.6]} 5...
h6 {[%clk 0:02:48.5]} 6. O-O {[%clk 0:02:55]} 6... Ne7 {[%clk 0:02:49.4]} 7.
Nbd2 {[%clk 0:02:55.2]} 7... Nd7 {[%clk 0:02:49.3]} 8. Nb3 {[%clk 0:02:55.2]}
8... g5 {[%clk 0:02:47.4]} 9. a4 {[%clk 0:02:53.6]} 9... Qc7 {[%clk 0:02:45.3]}
10. a5 {[%clk 0:02:53.8]} 10... a6 {[%clk 0:02:42.4]} 11. Bd2 {[%clk 0:02:53.8]}
11... c5 {[%clk 0:02:42.2]} 12. c3 {[%clk 0:02:51.1]} 12... Bg7 {[%clk
0:02:39.9]} 13. h3 {[%clk 0:02:28.2]} 13... Rc8 {[%clk 0:02:34.8]} 14. Re1
{[%clk 0:02:25]} 14... cxd4 {[%clk 0:02:30.9]} 15. Nbxd4 {[%clk 0:02:24.1]}
15... Nxe5 {[%clk 0:02:31]} 16. Nxe5 {[%clk 0:02:13]} 16... Bxe5 {[%clk
0:02:31.9]} 17. Qa4+ {[%clk 0:02:13.3]} 17... Kf8 {[%clk 0:02:27.9]} 18. Be3
{[%clk 0:01:45.8]} 18... Bg6 {[%clk 0:02:14.7]} 19. Nf3 {[%clk 0:01:38]} 19...
Bf6 {[%clk 0:01:47.9]} 20. Bd4 {[%clk 0:01:37.8]} 20... Bxd4 {[%clk 0:01:47.2]}
21. Qxd4 {[%clk 0:01:37.2]} 21... Kg8 {[%clk 0:01:45.4]} 22. Qf6 {[%clk
0:01:17.7]} 22... Nc6 {[%clk 0:01:31.8]} 23. h4 {[%clk 0:01:09.7]} 23... g4
{[%clk 0:00:55.6]} 24. Nd4 {[%clk 0:01:09.3]} 24... h5 {[%clk 0:00:52.9]} 25.
Nxe6 {[%clk 0:01:03.1]} 25... Qd6 {[%clk 0:00:37.3]} 26. Qg7# {[%clk 0:01:02.6]}
1-0

[Event "*** Titled Tuesday Blitz"]
[Site "Chess.com"]
[Date "2020.12.01"]
[Round "9"]
[White "AryanTari"]
[Black "szabadaba"]
[Result "1-0"]
[WhiteElo "2901"]
[BlackElo "2672"]
[TimeControl "180+1"]
[EndTime "11:41:58 PST"]
[Termination "AryanTari won by resignation"]

1. d4 {[%clk 0:03:00.9]} 1... d5 {[%clk 0:02:59.5]} 2. Nf3 {[%clk 0:03:00.3]}
2... Nf6 {[%clk 0:02:59.4]} 3. Bf4 {[%clk 0:02:53.3]} 3... e6 {[%clk 0:02:59.2]}
4. Nbd2 {[%clk 0:02:51.5]} 4... Bd6 {[%clk 0:02:58.6]} 5. Bg5 {[%clk 0:02:51.5]}
5... Be7 {[%clk 0:02:56.8]} 6. e3 {[%clk 0:02:51.6]} 6... O-O {[%clk 0:02:55.4]}
7. Bd3 {[%clk 0:02:50.1]} 7... b6 {[%clk 0:02:55.3]} 8. c3 {[%clk 0:02:49.4]}
8... Bb7 {[%clk 0:02:54.7]} 9. Qb1 {[%clk 0:02:49]} 9... h6 {[%clk 0:02:53.7]}
10. Bh4 {[%clk 0:02:35]} 10... Nbd7 {[%clk 0:02:53]} 11. a4 {[%clk 0:02:35.4]}
11... a6 {[%clk 0:02:52.6]} 12. O-O {[%clk 0:02:30.8]} 12... c5 {[%clk 0:02:52]}
13. h3 {[%clk 0:02:07.4]} 13... Re8 {[%clk 0:02:50.9]} 14. Re1 {[%clk
0:02:03.1]} 14... Qc7 {[%clk 0:02:48.9]} 15. Bg3 {[%clk 0:02:02.7]} 15... Bd6
{[%clk 0:02:48.6]} 16. Bxd6 {[%clk 0:01:52]} 16... Qxd6 {[%clk 0:02:49.5]} 17.
b4 {[%clk 0:01:48.6]} 17... cxb4 {[%clk 0:02:38.4]} 18. Qxb4 {[%clk 0:01:43.8]}
18... Qxb4 {[%clk 0:02:37.7]} 19. cxb4 {[%clk 0:01:44.7]} 19... Rec8 {[%clk
0:02:33.9]} 20. Rec1 {[%clk 0:01:42.5]} 20... Ne4 {[%clk 0:02:13.9]} 21. a5
{[%clk 0:01:32.6]} 21... Nd6 {[%clk 0:02:03.6]} 22. Ne5 {[%clk 0:01:27.2]} 22...
Nf6 {[%clk 0:01:27.8]} 23. axb6 {[%clk 0:01:24.2]} 23... Kf8 {[%clk 0:01:22]}
24. Nb3 {[%clk 0:01:22.7]} 24... Nc4 {[%clk 0:01:10.4]} 25. Nc5 {[%clk
0:01:09.2]} 25... Nd6 {[%clk 0:01:04.3]} 26. Nxb7 {[%clk 0:01:01.8]} 26... Rxc1+
{[%clk 0:01:00.7]} 27. Rxc1 {[%clk 0:01:02.7]} 27... Nxb7 {[%clk 0:01:01]} 28.
Rc7 {[%clk 0:00:59.9]} 28... Nd6 {[%clk 0:01:01]} 29. b7 {[%clk 0:00:59.9]}
29... Rb8 {[%clk 0:01:00.2]} 30. Bxa6 {[%clk 0:01:00.2]} 30... Nfe8 {[%clk
0:01:00.1]} 31. Rd7 {[%clk 0:00:54.5]} 1-0

[Event "*** Titled Tuesday Blitz"]
[Site "Chess.com"]
[Date "2020.12.01"]
[Round "9"]
[White "stoleriu"]
[Black "Supernotar"]
[Result "0-1"]
[WhiteElo "2551"]
[BlackElo "2780"]
[TimeControl "180+1"]
[EndTime "11:41:59 PST"]
[Termination "Supernotar won by resignation"]

1. e4 {[%clk 0:03:00.2]} 1... c6 {[%clk 0:03:00.1]} 2. Nf3 {[%clk 0:02:54.8]}
2... d5 {[%clk 0:03:01]} 3. exd5 {[%clk 0:02:55.7]} 3... cxd5 {[%clk 0:03:01.1]}
4. Ne5 {[%clk 0:02:55.7]} 4... Nf6 {[%clk 0:02:58]} 5. d4 {[%clk 0:02:54.4]}
5... Nc6 {[%clk 0:02:54.2]} 6. Bb5 {[%clk 0:02:49.2]} 6... Bd7 {[%clk
0:02:54.5]} 7. Nxd7 {[%clk 0:02:48.6]} 7... Qxd7 {[%clk 0:02:55.4]} 8. c3 {[%clk
0:02:49.2]} 8... e6 {[%clk 0:02:53.7]} 9. Bf4 {[%clk 0:02:45.2]} 9... a6 {[%clk
0:02:50]} 10. Ba4 {[%clk 0:02:44.6]} 10... Bd6 {[%clk 0:02:46.6]} 11. Bxd6
{[%clk 0:02:42]} 11... Qxd6 {[%clk 0:02:47.5]} 12. Nd2 {[%clk 0:02:42.6]} 12...
O-O {[%clk 0:02:46.4]} 13. O-O {[%clk 0:02:42]} 13... b5 {[%clk 0:02:46.6]} 14.
Bc2 {[%clk 0:02:42]} 14... b4 {[%clk 0:02:47.2]} 15. Nb3 {[%clk 0:02:41.9]}
15... bxc3 {[%clk 0:02:46.2]} 16. bxc3 {[%clk 0:02:42.8]} 16... Nd7 {[%clk
0:02:45.3]} 17. f4 {[%clk 0:02:38.6]} 17... g6 {[%clk 0:02:44.7]} 18. Rf3 {[%clk
0:02:35.4]} 18... a5 {[%clk 0:02:38.3]} 19. a4 {[%clk 0:02:35.6]} 19... Ne7
{[%clk 0:02:34.1]} 20. g4 {[%clk 0:02:26.6]} 20... Nf6 {[%clk 0:02:21.4]} 21. h3
{[%clk 0:02:22.3]} 21... Ne4 {[%clk 0:02:21.5]} 22. Qe1 {[%clk 0:02:12.5]} 22...
f5 {[%clk 0:02:19]} 23. g5 {[%clk 0:02:07.9]} 23... Rfc8 {[%clk 0:02:18]} 24. h4
{[%clk 0:01:55.3]} 24... Rc7 {[%clk 0:02:11]} 25. h5 {[%clk 0:01:55]} 25... Rac8
{[%clk 0:02:04.8]} 26. Kg2 {[%clk 0:01:38.2]} 26... Nxc3 {[%clk 0:01:46.8]} 27.
hxg6 {[%clk 0:01:33.5]} 27... Nxg6 {[%clk 0:01:41.7]} 28. Qe3 {[%clk 0:01:18.5]}
28... Nh4+ {[%clk 0:01:29.9]} 29. Kf2 {[%clk 0:01:02.1]} 29... Nxf3 {[%clk
0:01:27.2]} 30. Qxf3 {[%clk 0:01:03]} 30... Ne4+ {[%clk 0:01:24.3]} 31. Bxe4
{[%clk 0:01:03.7]} 31... dxe4 {[%clk 0:01:23.4]} 32. Qh5 {[%clk 0:00:55.7]}
32... Rc2+ {[%clk 0:01:23.3]} 33. Ke1 {[%clk 0:00:50.7]} 33... Qxf4 {[%clk
0:01:19.2]} 0-1

[Event "*** Titled Tuesday Blitz"]
[Site "Chess.com"]
[Date "2020.12.01"]
[Round "9"]
[White "JiiHart"]
[Black "lelya96"]
[Result "0-1"]
[WhiteElo "2092"]
[BlackElo "2219"]
[TimeControl "180+1"]
[EndTime "11:41:59 PST"]
[Termination "lelya96 won by resignation"]

1. e4 {[%clk 0:00:25.7]} 1... e5 {[%clk 0:02:55.8]} 2. Nf3 {[%clk 0:00:25.2]}
2... Nc6 {[%clk 0:02:55.1]} 3. d4 {[%clk 0:00:25.3]} 3... exd4 {[%clk
0:02:53.9]} 4. Nxd4 {[%clk 0:00:26.2]} 4... Qf6 {[%clk 0:02:52.5]} 5. c3 {[%clk
0:00:25.7]} 5... d6 {[%clk 0:02:48.4]} 6. Be3 {[%clk 0:00:25.5]} 6... Qg6 {[%clk
0:02:43.6]} 7. g3 {[%clk 0:00:25.4]} 7... Qxe4 {[%clk 0:02:42]} 8. Rg1 {[%clk
0:00:25.3]} 8... Nxd4 {[%clk 0:02:39.4]} 9. cxd4 {[%clk 0:00:23.9]} 9... Bg4
{[%clk 0:02:37.8]} 10. Nc3 {[%clk 0:00:24.1]} 10... Bxd1 {[%clk 0:02:35]} 11.
Nxe4 {[%clk 0:00:23.7]} 11... Ba4 {[%clk 0:02:34.2]} 12. b3 {[%clk 0:00:22.8]}
12... Bd7 {[%clk 0:02:33.7]} 13. Bg2 {[%clk 0:00:23.5]} 13... d5 {[%clk
0:02:32.4]} 14. Nc3 {[%clk 0:00:21.3]} 14... c6 {[%clk 0:02:29.4]} 15. O-O-O
{[%clk 0:00:21.2]} 15... Nf6 {[%clk 0:02:28.3]} 16. Bg5 {[%clk 0:00:20.2]} 16...
Bb4 {[%clk 0:02:22.2]} 17. Rge1+ {[%clk 0:00:19.4]} 17... Kd8 {[%clk 0:02:21.2]}
18. Kb2 {[%clk 0:00:19.6]} 18... Re8 {[%clk 0:02:17]} 19. Bxf6+ {[%clk
0:00:19.8]} 19... gxf6 {[%clk 0:02:16.4]} 20. Rxe8+ {[%clk 0:00:20.7]} 20...
Bxe8 {[%clk 0:02:14.8]} 21. Bh3 {[%clk 0:00:20.4]} 21... Bd7 {[%clk 0:02:14.7]}
22. Bxd7 {[%clk 0:00:19.6]} 22... Kxd7 {[%clk 0:02:15.6]} 23. Re1 {[%clk
0:00:20]} 23... Rg8 {[%clk 0:02:12.7]} 24. Re3 {[%clk 0:00:18.7]} 24... Rg4
{[%clk 0:02:11.9]} 25. Rd3 {[%clk 0:00:17.3]} 25... Bxc3+ {[%clk 0:02:10]} 26.
Kxc3 {[%clk 0:00:17.5]} 26... Re4 {[%clk 0:02:10.5]} 27. Re3 {[%clk 0:00:17.3]}
27... f5 {[%clk 0:02:09.1]} 28. Rxe4 {[%clk 0:00:17.3]} 28... fxe4 {[%clk
0:02:08.6]} 29. Kd2 {[%clk 0:00:17.6]} 29... Ke6 {[%clk 0:02:08.5]} 30. Ke3
{[%clk 0:00:18.1]} 30... Kf5 {[%clk 0:02:08.7]} 31. h3 {[%clk 0:00:18.1]} 31...
h5 {[%clk 0:02:08.1]} 32. f3 {[%clk 0:00:17.7]} 32... exf3 {[%clk 0:02:06.1]}
33. Kxf3 {[%clk 0:00:18]} 33... Kg5 {[%clk 0:02:06.4]} 34. g4 {[%clk 0:00:16.6]}
34... hxg4+ {[%clk 0:02:05.1]} 35. hxg4 {[%clk 0:00:16.9]} 35... f5 {[%clk
0:02:05.7]} 36. gxf5 {[%clk 0:00:16.3]} 36... Kxf5 {[%clk 0:02:06.2]} 37. Ke3
{[%clk 0:00:16.3]} 37... Kg4 {[%clk 0:02:06.1]} 38. b4 {[%clk 0:00:15.8]} 38...
b5 {[%clk 0:02:05]} 39. a3 {[%clk 0:00:15.8]} 39... a6 {[%clk 0:02:05.2]} 40.
Kf2 {[%clk 0:00:15.1]} 40... Kf4 {[%clk 0:02:05.2]} 41. Ke2 {[%clk 0:00:15.5]}
41... Ke4 {[%clk 0:02:05.5]} 0-1

[Event "*** Titled Tuesday Blitz"]
[Site "Chess.com"]
[Date "2020.12.01"]
[Round "9"]
[White "BilodeauA"]
[Black "FairChess_on_YouTube"]
[Result "0-1"]
[WhiteElo "2853"]
[BlackElo "3001"]
[TimeControl "180+1"]
[EndTime "11:42:00 PST"]
[Termination "FairChess_on_YouTube won by resignation"]

1. e4 {[%clk 0:03:00.9]} 1... a6 {[%clk 0:03:00.3]} 2. d4 {[%clk 0:02:56.9]}
2... g6 {[%clk 0:03:00.7]} 3. f4 {[%clk 0:02:55.5]} 3... d5 {[%clk 0:02:59.4]}
4. e5 {[%clk 0:02:54.5]} 4... h5 {[%clk 0:02:59.2]} 5. Nf3 {[%clk 0:02:53]} 5...
Bg4 {[%clk 0:02:58.7]} 6. Nbd2 {[%clk 0:02:52.4]} 6... c5 {[%clk 0:02:53.2]} 7.
h3 {[%clk 0:02:50.4]} 7... Bxf3 {[%clk 0:02:51.6]} 8. Nxf3 {[%clk 0:02:51.3]}
8... e6 {[%clk 0:02:49.2]} 9. c3 {[%clk 0:02:51.3]} 9... Nc6 {[%clk 0:02:47.8]}
10. Be3 {[%clk 0:02:44.3]} 10... cxd4 {[%clk 0:02:43.3]} 11. Nxd4 {[%clk
0:02:27.8]} 11... Qh4+ {[%clk 0:02:42.8]} 12. Ke2 {[%clk 0:02:17.4]} 12... Nge7
{[%clk 0:02:29.3]} 13. g3 {[%clk 0:00:54.3]} 13... Qxg3 {[%clk 0:02:11.8]} 14.
Rg1 {[%clk 0:00:47.5]} 14... Qh2+ {[%clk 0:02:04.8]} 15. Rg2 {[%clk 0:00:41.9]}
15... Nxd4+ {[%clk 0:01:45.4]} 16. cxd4 {[%clk 0:00:36.1]} 16... Qxh3 {[%clk
0:01:44]} 17. Rg5 {[%clk 0:00:27.2]} 17... Qh2+ {[%clk 0:01:40.2]} 18. Rg2
{[%clk 0:00:26.3]} 18... Qh4 {[%clk 0:01:35.9]} 19. Qb3 {[%clk 0:00:24.6]} 19...
Bh6 {[%clk 0:01:29]} 20. Qxb7 {[%clk 0:00:19.6]} 20... O-O {[%clk 0:01:28.9]}
21. Kf3 {[%clk 0:00:11.6]} 21... Nf5 {[%clk 0:01:24.2]} 0-1